Cogmind - Beta 13 @@@ ROGUE MODE // 2024.06.23 @ 08:19:35 Player: puppuppit Result: Destroyed by D-53 Grenadier with Mini Grenade Launcher Performance ------------- Evolutions (0) 0 Regions Visited (2) 400 Robots Destroyed (35) 175 Value Destroyed (418) 418 Prototype IDs (2) 40 Alien Tech Used (0) 0 Bonus (0) 0 TOTAL SCORE: 1033 Bonus ------- None Cogmind --------- Core Integrity 0/250 Matter 287/300 Energy 81/100 System Corruption 0% Temperature Cool (2) Movement Hovering (60) Location -10/Mines Parts ------- > --- POWER (1) -------- (None) > --- PROPULSION (2) --- Hover Unit > --- UTILITY (2) ------ Small Storage Unit Structural Scanner > --- WEAPON (2) ------- (None) > --- INVENTORY (8) ---- Medium Matter Pod (100) Assault Rifle Heavy Assault Rifle Heavy Assault Rifle Heavy Assault Rifle Grenade Launcher Makeshift Hammer Peak State ------------ > --- POWER ------------ Light Ion Engine > --- PROPULSION ------- Wheel Wheel > --- UTILITY ---------- Small Storage Unit Structural Scanner > --- WEAPON ----------- Heavy Assault Rifle Heavy Assault Rifle > --- INVENTORY -------- Wheel Wheel Medium Matter Pod Weight Redist. System Tractor Beam Heavy Assault Rifle Heavy Assault Rifle Grenade Launcher [Rating: 10] Favorites ----------- Power Light Ion Engine Engine Light Ion Engine Propulsion Wheel Wheel Wheel Hover Unit Hover Unit Utility Small Storage Unit Device Structural Scanner Storage Small Storage Unit Weapon Heavy Assault Rifle Ballistic Gun Heavy Assault Rifle Launcher Grenade Launcher Build | -11 -10 -10 ------- Run | Yrd Mat Min Slots Evolved . | . . . Power . | . . . Propulsion . | . . . Utility . | . . . Weapon . | . . . Parts Attached 28 | 10 16 2 Power 4 | 1 3 . Engine 4 | 1 3 . Core . | . . . Reactor . | . . . Propulsion 8 | 4 3 1 Treads . | . . . Leg . | . . . Wheel 5 | 4 1 . Hover 3 | . 2 1 Flight . | . . . Utility 6 | 3 3 . Device 3 | 2 1 . Storage 3 | 1 2 . Processor . | . . . Hackware . | . . . Protection . | . . . Artifact . | . . . Weapon 10 | 2 7 1 Energy Gun . | . . . Energy Cannon . | . . . Ballistic Gun 7 | 2 5 . Ballistic Cannon . | . . . Launcher 3 | . 2 1 Special Weapon . | . . . Impact Weapon . | . . . Slashing Weapon . | . . . Piercing Weapon . | . . . Special Melee Weapon . | . . . Unidentified Prototypes . | . . . Parts Lost 5 | . 1 4 Power 1 | . 1 . Propulsion 2 | . . 2 Utility . | . . . Weapon 2 | . . 2 Highest Loss Streak 4 | . 1 4 To Critical Strikes . | . . . Average Slot Usage (%) 90 | . 92 85 Engine 5 | . 7 . Wheel 16 | . 22 . Hover 11 | . 5 28 Device 14 | . 14 14 Storage 14 | . 14 14 Ballistic Gun 26 | . 27 25 Naked Turns . | . . . Heaviest Build 22 | 12 22 12 Greatest Support 32 | 32 20 12 Greatest Overweight (x) 1 | . 1 . Average Overweight (x) . | . . . Largest Inventory Capacity 10 | 8 10 8 Average Capacity 8 | 7 8 8 Most Carried 10 | 8 10 8 Average Carried 7 | 2 8 7 Final Capacity 8 | 8 8 8 Final Carried 8 | 8 7 7 Class Distribution -------------------- 81% | Mutant 18% | Scavenger-Mutant Dominant Class ---------------- Mutant | -10/Materials Mutant | -10/Mines Resources | -11 -10 -10 ----------- Run | Yrd Mat Min Matter Collected 1087 | 399 540 148 Remotely 135 | 135 . . Salvage Created 994 | 174 584 236 Parts 66 | 13 47 6 Haulers Intercepted 1 | . 1 . Recyclers Shooed . | . . . Parts Field Recycled . | . . . Retrieved Matter . | . . . Parts Self-Destructed . | . . . Prevented . | . . . Kills | -11 -10 -10 ------- Run | Yrd Mat Min Combat Hostiles Destroyed 11 | . 11 . Guns 6 | . 6 . AOE 5 | . 5 . Classes Destroyed 8 | 3 5 . Worker 8 | 2 5 1 Builder 4 | . 4 . Tunneler 5 | 4 . 1 Hauler 1 | . 1 . Recycler 3 | 1 1 1 Watcher 3 | . 3 . Swarmer 5 | . 5 . Grunt 6 | . 6 . Best Kill Streak 5 | 3 5 2 Combat Bots Only 3 | . 3 . Max Kills in Single Turn 3 | 1 3 1 Gunslinging . | . . . Exploded 3 | . 3 . Melee . | . . . Uniques/NPCs Destroyed . | . . . Combat | -11 -10 -10 -------- Run | Yrd Mat Min Hostile Shots Fired 44 | . 36 8 Missed 10 | . 9 1 Damage Taken 761 | . 400 361 Core 256 | . 103 153 Absorbed by Shields . | . . . Regen/Repaired (Parts) 70 | . 70 . Core Remaining (%) 100 | 100 . . Volleys Fired 95 | 18 58 19 Largest 2 | 2 2 2 Hottest 50 | 40 50 46 Shots Fired 183 | 36 116 31 Gun 173 | 36 113 24 Cannon . | . . . Launcher 10 | . 3 7 Special . | . . . Kinetic 173 | 36 113 24 Thermal . | . . . Explosive 10 | . 3 7 Electromagnetic . | . . . Robot Hit Streak 10 | 7 6 10 Robot Miss Streak 5 | 2 5 4 Penetration Max . | . . . Secondary Targets . | . . . Shots Hit Robots 92 | 22 59 11 Core Hits 43 | 10 28 5 Critical Kills . | . . . Critical Parts Destroyed . | . . . Critical Strikes . | . . . Melee Attacks . | . . . Impact . | . . . Slashing . | . . . Piercing . | . . . Sneak Attacks . | . . . Combat Hostiles . | . . . Follow-up Attacks . | . . . Damage Inflicted 1509 | 247 1096 166 Guns 1225 | 247 812 166 Cannons . | . . . Explosions 284 | . 284 . Melee . | . . . Ramming . | . . . Kinetic 1225 | 247 812 166 Thermal . | . . . Explosive 284 | . 284 . Electromagnetic . | . . . Impact . | . . . Slashing . | . . . Piercing . | . . . Highest Corruption . | . . . Average Corruption . | . . . Corruption Purged . | . . . Corruption Blocked . | . . . Overload Shots . | . . . Overflow Damage 56 | . 56 . Projectiles . | . . . Explosions 56 | . 56 . Melee . | . . . Knockbacks . | . . . Impact . | . . . Kinetic . | . . . Secondary . | . . . Self-Inflicted Damage 76 | . 76 . Shots 3 | . 3 . Rammed . | . . . Targets Rammed . | . . . Kicked . | . . . Crushed . | . . . Highest Temperature 4 | . 4 . Average Temperature 3 | . 3 . Received Heat Transfer 96 | . 96 . Siege Activations . | . . . Robots Corrupted . | . . . Combat Hostiles . | . . . Parts Fried . | . . . Impact Corruptions . | . . . Robots Melted . | . . . Combat Hostiles . | . . . Parts Melted . | . . . Heat Transferred . | . . . Parts Sabotaged . | . . . Parts Stolen . | . . . Parts Stripped . | . . . Power Chain Reactions . | . . . Alert | -11 -10 -10 ------- Run | Yrd Mat Min Peak Influence 379 | 35 379 176 Initial 132 | . 22 132 Average 183 | 16 233 149 Maximum Alert Level 1 | . 1 . Low Security (%) 53 | 100 27 100 Level 1 46 | . 72 . Level 2 . | . . . Level 3 . | . . . Level 4 . | . . . Level 5 . | . . . High Security . | . . . Max Security . | . . . Squads Dispatched 2 | . 2 . Investigation 2 | . 2 . Extermination . | . . . Reinforcement . | . . . Assault . | . . . Garrison . | . . . Intercept . | . . . Searches Triggered . | . . . Construction Impeded . | . . . Haulers Reinforced . | . . . Active Scanning Responses . | . . . Cargo Convoy Interrupts . | . . . Stealth | -11 -10 -10 --------- Run | Yrd Mat Min Distress Signals 2 | . 2 . Communications Jammed . | . . . Distress Signals . | . . . Times Spotted 23 | . 21 2 Peak Tracking Total 4 | . 4 2 Tactical Retreats 2 | . 2 . Traps | -11 -10 -10 ------- Run | Yrd Mat Min Traps Triggered 1 | . 1 . Indirectly . | . . . Trap Hack Attempts . | . . . Triggered . | . . . Disarmed . | . . . Reprogrammed . | . . . Reused . | . . . Traps Extracted . | . . . Installed . | . . . Triggered . | . . . Machines | -11 -10 -10 ---------- Run | Yrd Mat Min Machines Disabled 2 | . 1 1 Max in Single Turn 1 | . 1 1 Machines Repaired . | . . . Machines Dismantled . | . . . Machines Sabotaged . | . . . Overloaded Fab Kills . | . . . Hacking | -11 -10 -10 --------- Run | Yrd Mat Min Machines Accessed 6 | . 6 . Terminals 4 | . 4 . Fabricators . | . . . Repair Stations 1 | . 1 . Recycling Units 1 | . 1 . Scanalyzers . | . . . Garrison Access . | . . . Total Hacks 26 | . 26 . Successful 10 | . 10 . Failed 15 | . 15 . Catastrophic 1 | . 1 . Database Lockouts 1 | . 1 . Manual 10 | . 10 . Terminals 17 | . 17 . Fabricators . | . . . Repair Stations 5 | . 5 . Recycling Units 4 | . 4 . Scanalyzers . | . . . Garrison Access . | . . . Terminal Hacks 7 | . 7 . Robot Analysis 4 | . 4 . Prototype ID Bank 1 | . 1 . Terminal Index 1 | . 1 . Zone Layout 1 | . 1 . Fabricator Hacks . | . . . Repair Station Hacks 3 | . 3 . Scan Component 2 | . 2 . Repair 1 | . 1 . Recycling Unit Hacks . | . . . Scanalyzer . | . . . Garrison Access Hacks . | . . . Unauthorized Hacks . | . . . Terminals . | . . . Fabricators . | . . . Repair Stations . | . . . Recycling Units . | . . . Scanalyzers . | . . . Garrison Access . | . . . Data Cores Recovered . | . . . Used . | . . . Hacking Detections 6 | . 6 . Full Trace Events 3 | . 3 . Feedback Events . | . . . Feedback Blocked . | . . . Robot Schematics Acquired . | . . . Robots Built . | . . . Authchips . | . . . Time . | . . . Total Robot Build Rating . | . . . Part Schematics Acquired . | . . . Parts Built . | . . . Authchips . | . . . Time . | . . . Total Part Build Rating . | . . . Parts Repaired 1 | . 1 . Time 22 | . 22 . Parts Recycled . | . . . Recycled Matter . | . . . Retrieved Matter . | . . . Retrieved Components . | . . . Parts Scanalyzed . | . . . Part Schematics Acquired . | . . . Parts Damaged . | . . . Bothacking | -11 -10 -10 ------------ Run | Yrd Mat Min Used RIF Installer . | . . . Robots Hacked . | . . . Non-combat . | . . . Combat . | . . . Robot Hacks Applied . | . . . Relay Couplers Released . | . . . Fabnet Peak Effective % . | . . . Robots Rewired . | . . . Allies Hacked . | . . . Hacks Repelled . | . . . Allies | -11 -10 -10 -------- Run | Yrd Mat Min Total Allies . | . . . Largest Group . | . . . Highest-Rated Group . | . . . Highest-Rated Ally . | . . . Total Orders . | . . . Ally Attacks . | . . . Total Damage . | . . . Kills . | . . . Allies Corrupted . | . . . Allies Melted . | . . . Intel | -11 -10 -10 ------- Run | Yrd Mat Min Robot Analysis Total 4 | . 4 . Derelict Logs Recovered 2 | . . 2 Drone Launches . | . . . Drone Recoveries . | . . . Exploration | -11 -10 -10 ------------- Run | Yrd Mat Min Turns Passed 1006 | 148 642 216 Spaces Moved 816 | 86 466 264 Core 2 | 2 . . Treads . | . . . Legs . | . . . Wheels 463 | 84 379 . Hover 351 | . 87 264 Flight . | . . . Fastest Speed 50 | 50 56 56 Average Speed 72 | 90 79 56 Slowest Speed 116 | 100 116 56 Overloaded Moves . | . . . Propulsion Burnouts . | . . . Robots Hopped . | . . . Cave-ins Triggered . | . . . Exploration Rate (%) 45 | 4 71 62 Regions Visited 2 Branch Regions 1 Pre-discovered Areas . | . . . Known Exits Taken . | . . . Unknown Exits Taken 2 | 1 1 . Scrap Searched 1 | . . 1 Spaces Dug . | . . . Terrain Destroyed 69 | . 18 51 Melee . | . . . Projectile . | . . . AOE 69 | . 18 51 Terrain Rammed . | . . . Walls Destroyed . | . . . Machines Disabled . | . . . Actions | -11 -10 -10 --------- Run | Yrd Mat Min Total 1054 | 119 634 301 Wait 72 | . 59 13 Move 814 | 85 465 264 Hop . | . . . Pick Up 19 | 5 12 2 Fast Attach 13 | 8 5 . Attach 2 | . 1 1 Detach 4 | 1 3 . Swap 13 | 2 10 1 Drop 22 | . 21 1 Fire 95 | 18 58 19 Melee . | . . . Ram . | . . . Kick . | . . . Crush . | . . . Escape Stasis . | . . . Rewire . | . . . Trap . | . . . Miscellaneous . | . . . Route ------- -11/Scrapyard -10/Materials (discovered 5 exits: *Mat x3 / [*Min x2]) -10/Mines (discovered 2 exits: *Mat x2) History --------- Turn | Location | Event 23 | -11/Scrapyard | Discovered new exit (range 15) 149 | -11/Scrapyard | Entered Materials 292 | -10/Materials | Discovered new exit (range 12) 306 | -10/Materials | Build established: Mutant 462 | -10/Materials | Discovered new exit (range 16) 505 | -10/Materials | Central database locked down 543 | -10/Materials | Discovered new exit (range 5) 688 | -10/Materials | Discovered new exit (range 16) 728 | -10/Materials | Discovered new exit (range 9) 755 | -10/Materials | Repaired Broken Hvy. Assault Rifle 791 | -10/Materials | Entered Mines 792 | -10/Mines | Met a Derelict bent on vengeance 832 | -10/Mines | A weapon hastily lodged in a ceiling crevice suddenly fell to the ground 868 | -10/Mines | Discovered new exit (range 10) 930 | -10/Mines | Identified exit to Materials 938 | -10/Mines | Learned location of 1 exit from Materials 971 | -10/Mines | Assembled infested the area 1001 | -10/Mines | Core integrity fell below 50% 1005 | -10/Mines | Core integrity fell below 20% 1007 | -10/Mines | Destroyed by D-53 Grenadier with Mini Grenade Launcher Last Messages --------------- 00909_ K-01 Serf destroyed. 00912_ K-01 Serf collects debris. 00913_ Extracted 30 matter. 00915_ K-01 Serf collects debris. 00929_ T-07 Excavator is excavating. 00930_ Acquired derelict log, extracted data. 00933_ T-07 Excavator is excavating. 00938_ Acquired derelict log, extracted data. Data stored: Materials exits (x1). 00946_ Seismic Survey Station disabled. 00958_ T-07 Excavator destroyed. 00971_ ALERT: Infestation in the mines, dispatching Demolisher response squad. 00982_ The unstable cave ceiling collapses. 00999_ C-30 ARC bursts open, deploying its payload. 00999_ D-53 Grenadier unfolds itself. 01000_ The unstable cave ceiling collapses. 01001_ Grenade Launcher destroyed. 01001_ Acquired 81 matter. 01003_ Hvy. Assault Rifle destroyed. 01004_ Hover Unit destroyed. Map ----- +----------------------------------------------------+ | ###???????### ##### ## ## | | ##??????#### ### ### | | ##?######## ## ####### | | # ########### %!< ##### #######? | | # ######## """ ############????? | | ####### """ ###########?????? | | # ####### """ ####???????????? | | # #### ## = ###???????????? | | # ## ##### #### !% ##???????????? | | # ## ############ ## ##???????????? | | # #########?### ####### ###???????????? | | # ############## ########## ####???????????? | | #! ############# ####???#### ######?????????? | | ## =%[ ## ##?????#### #######????????? | | ## ######### ########### ###????????? | | # ########## ############ ##????????? | | ####?????## ####### ##????????? | | ####??????## ##???## ###????????? | | !! ###???????## ##???## ### ####????????? | | % ###??????## ##???## #### ####?????????? | | ### ##??????## ???## ############??????????? | | #### ###???####### ???## ###########???????????? | | ?########???####### ##### ###??????????########## | | ??######??? ##### #####????????########## | | ?????????????????## #####??####### | | ?????????????????##### @ ###??####### """ | | ?????????????????##### ##??## " | | ???????????????????### ###### #### """ | | ???????????????????## ###### #### | | ??????????????????### #### | | ???????????????###### #### | | ???????????????##### #################### | | ???????????????## # #################### | | ???????????????## dd ##?????????????????? | | ???????????????## ###????????????????? | | ???????????????## # ###????????????????? | | ???????????????## ##????????????????? | | ???????????????### ###????????????????? | | ???????????????##### ## ###????????????????? | | ????????????????####### ##?????????????????? | | ??????????????????####### ######?????????????????? | | ?????????????????????###########?????????????????? | | ???????????????????????#####?????????????????????? | | ?????????????????????????????????????????????????? | | ?????????????????????????????????????????????????? | | ?????????????????????????????????????????????????? | | ?????????????????????????????????????????????????? | | ?????????????????????????????????????????????????? | | ?????????????????????????????????????????????????? | | ?????????????????????????????????????????????????? | +----------------------------------------------------+ Best States ------------- Heat Dissipation 25 Energy Generation 10 Energy Capacity 250 Matter Stores 300 Matter Capacity 300 Sight Range 16 Terrain Scan Range 16 Terrain Scan Density 10 Evasion (%) 53 Item Schematics ----------------- None Robot Schematics ------------------ None Fabricated ------------ Nothing Alien Tech Used ----------------- None Achievements -------------- None Challenges ------------ None Game ------ Seed LightCoreReconfigurator Manual? 0 Play Time 00:12:46 Cumulative 422.8 hours Start 2024.06.23 @ 08:09:20 End 2024.06.23 @ 08:19:35 Sessions 1 Manual Loads 0 Difficulty Rogue Special Mode None Game No. 154 Rogue 154 Adventurer 0 Explorer 0 Win Type - Total 3 Types 0/0/2/1/0/0/0/0/0 Lore% 71 Gallery% 79 Achievement% 63 Wizard Run 0 Options --------- Layout 0 ASCII 0 Keyboard 1 Movement Arrows Keybinds 0 Fullscreen 1 Font 12/Proggy Map View 83x54 Zoom Use 0% Tactical HUD 1 Map Filters NONE Filters NONE Steam 0 RUN: fc45435f-87e7-44fa-bafe-328f97cc3cfc